fUST/lending_fUST_20240706
["ID","MTS","AMOUNT","RATE_DAILY","PERIOD"]
[331331101,1720246233380,-153.0,0.00045205,2]
[331331103,1720246233389,-206.1814845,0.00045205,2]
[331331105,1720246233399,-160.0,0.00045581,9]
[331331107,1720246233409,-348.12610099,0.00045927,2]
[331331109,1720246233418,-1770.77602323,0.00046,120]
[331331111,1720246233428,-4000.0,0.00046,120]
[331331113,1720246233438,-153.0,0.00046027,2]
[331331115,1720246233449,-153.0,0.00046027,2]
[331331117,1720246233458,-206.1814845,0.00046027,2]
[331331119,1720246233468,-153.0,0.00046027,2]
[331331121,1720246233478,-206.1814845,0.00046027,2]
[331331123,1720246233487,-153.0,0.00046027,2]
[331331125,1720246233497,-206.1814845,0.00046027,2]
[331331127,1720246233506,-160.3517433,0.00046027,2]
[331331129,1720246233515,-153.0,0.00046027,2]
[331331132,1720246233533,-206.1814845,0.00046027,2]
[331331134,1720246233544,-153.0,0.00046027,2]
[331331136,1720246233553,-153.0,0.00046027,2]
[331331138,1720246233563,-206.1814845,0.00046027,2]
[331331140,1720246233572,-153.0,0.00046027,2]
[331331141,1720246233582,-206.1814845,0.00046027,2]
[331331143,1720246233592,-206.1814845,0.00046027,2]
[331331144,1720246233601,-153.0,0.00046027,2]
[331331145,1720246233611,-206.1814845,0.00046027,2]
[331331146,1720246233621,-412.3223436,0.00046027,2]
[331331147,1720246233630,-412.3223436,0.00046027,2]
[331331148,1720246233642,-417.2850605,0.00046027,2]
[331331149,1720246233652,-160.0,0.00046341,10]
[331331150,1720246233662,-20000.0,0.000464,120]
[331331151,1720246233672,-773.13,0.00046529,30]
[331331152,1720246233682,-1883.24,0.00046544,3]
[331331153,1720246233691,-1569.36,0.00046544,3]
[331331154,1720246233701,-462.04265502,0.00046553,120]
[331331155,1720246233710,-634.63326862,0.00046553,120]
[331331156,1720246233720,-500.0,0.00046553,7]
[331331157,1720246233729,-500.0,0.00046553,7]
[331331158,1720246233739,-500.0,0.00046553,7]
[331331159,1720246233748,-500.0,0.00046553,7]
[331331160,1720246233758,-500.0,0.00046553,7]
[331331161,1720246233768,-500.0,0.00046553,7]
[331331162,1720246233778,-500.0,0.00046553,7]
[331331163,1720246233787,-500.0,0.00046553,7]
[331331164,1720246233797,-500.0,0.00046553,7]
[331331165,1720246233807,-500.0,0.00046553,7]
[331331166,1720246233817,-500.0,0.00046553,7]
[331331167,1720246233827,-500.0,0.00046553,7]
[331331168,1720246233837,-500.0,0.00046553,7]
[331331169,1720246233846,-500.0,0.00046553,7]
[331331170,1720246233857,-500.0,0.00046553,7]
[331331171,1720246233867,-500.0,0.00046553,7]
[331331172,1720246233877,-83076.5936562,0.00046554,5]
[331331173,1720246233889,-69297.82079808,0.00046555,5]
[331331174,1720246233904,-1518.48172937,0.00046555,5]
[331331215,1720246240510,-1307.8,0.00046545,3]
[331331216,1720246240520,-500.0,0.00046553,7]
[331331217,1720246240529,-500.0,0.00046553,7]
[331331219,1720246240538,-500.0,0.00046553,7]
[331331221,1720246240548,-500.0,0.00046553,7]
[331331223,1720246240557,-500.0,0.00046553,7]
[331331224,1720246240566,-8.43096379,0.00046553,7]
[331331225,1720246240579,-491.56903621,0.00046553,7]
[331331226,1720246240588,-500.0,0.00046553,7]
[331331227,1720246240597,-500.0,0.00046553,7]
[331331228,1720246240607,-500.0,0.00046553,7]
[331331229,1720246240616,-500.0,0.00046553,7]
[331331230,1720246240626,-500.0,0.00046553,7]
[331331231,1720246240636,-500.0,0.00046553,7]
[331331232,1720246240646,-500.0,0.00046553,7]
[331331233,1720246240656,-500.0,0.00046553,7]
[331331234,1720246240665,-500.0,0.00046553,7]
[331331235,1720246240675,-500.0,0.00046553,7]
[331331236,1720246240684,-475.85057525,0.00046553,7]
[331331237,1720246240694,-500.0,0.00046553,7]
[331331238,1720246240705,-500.0,0.00046553,7]
[331331239,1720246240714,-500.0,0.00046553,7]
[331331240,1720246240725,-500.0,0.00046553,7]
[331331241,1720246240735,-500.0,0.00046553,7]
[331331242,1720246240745,-500.0,0.00046553,7]
[331331243,1720246240755,-500.0,0.00046553,7]
[331331244,1720246240765,-500.0,0.00046553,7]
[331331245,1720246240776,-500.0,0.00046553,7]
[331331246,1720246240786,-500.0,0.00046553,7]
[331331247,1720246240796,-500.0,0.00046553,7]
[331331248,1720246240806,-11021.951375,0.00046555,5]
[331331249,1720246241627,-366.30707185,0.00046555,5]
[331331250,1720246241642,-83948.6263377,0.00046555,5]
[331331251,1720246241651,-1002.41632879,0.00046564,2]
[331331252,1720246241662,-500.0,0.00046564,120]
[331331253,1720246241672,-500.0,0.00046564,120]
[331331254,1720246241681,-300.0,0.00046564,31]
[331331255,1720246241691,-500.0,0.00046564,120]
[331331256,1720246241700,-500.0,0.00046564,120]
[331331257,1720246241711,-535.15625599,0.00046564,120]
[331331259,1720246241720,-500.0,0.00046564,120]
[331331261,1720246241729,-500.0,0.00046564,120]
[331331263,1720246241738,-450.0,0.00046564,120]
[331331265,1720246241747,-500.0,0.00046564,120]
[331331267,1720246241756,-500.0,0.00046564,120]
[331331269,1720246241766,-457.82766471,0.00046564,120]
[331331271,1720246241775,-500.0,0.00046564,120]
[331331272,1720246241784,-500.0,0.00046564,120]
[331331274,1720246241793,-500.0,0.00046564,120]
[331331276,1720246241803,-500.0,0.00046564,120]
[331331278,1720246241812,-500.0,0.00046564,120]
[331331280,1720246241821,-500.0,0.00046564,120]
[331331282,1720246241830,-500.0,0.00046564,120]
[331331284,1720246241840,-500.0,0.00046564,120]
[331331286,1720246241849,-500.0,0.00046564,120]
[331331288,1720246241858,-500.0,0.00046564,120]
[331331290,1720246241867,-500.0,0.00046564,120]
[331331292,1720246241876,-500.0,0.00046564,120]
[331331294,1720246241885,-500.0,0.00046564,120]
[331331296,1720246241894,-500.0,0.00046564,120]
[331331298,1720246241903,-500.0,0.00046564,120]
[331331300,1720246241912,-487.34829941,0.00046564,120]
[331331302,1720246241921,-69085.11654225,0.00046565,61]
[331331304,1720246241931,-151.0,0.00046565,14]
[331331306,1720246241940,-190.15995,0.00046565,14]
[331331308,1720246241949,-151.0,0.00046565,14]
[331331310,1720246241960,-151.0,0.00046565,14]
[331331312,1720246241970,-151.0,0.00046565,14]
[331331314,1720246241978,-151.0,0.00046565,14]
[331331316,1720246241988,-151.0,0.00046565,14]
[331331318,1720246241997,-215.907759,0.00046565,14]
[331331320,1720246242006,-151.0,0.00046565,14]
[331331322,1720246242015,-151.0,0.00046565,14]
[331331324,1720246242024,-151.0,0.00046565,14]
[331331326,1720246242033,-151.0,0.00046565,14]
[331331328,1720246242043,-151.0,0.00046565,14]
[331331329,1720246242052,-4614.443702,0.00046565,14]
[331331331,1720246242061,-4614.443702,0.00046565,14]
[331331333,1720246242071,-4614.443702,0.00046565,14]
[331331335,1720246242080,-4614.443702,0.00046565,14]
[331331337,1720246242089,-151.0,0.00046565,14]
[331331339,1720246242098,-151.0,0.00046565,14]
[331331341,1720246242107,-151.0,0.00046565,14]
[331331343,1720246242116,-151.0,0.00046565,14]
[331331345,1720246242125,-391.036318,0.00046565,14]
[331331347,1720246242134,-391.036318,0.00046565,14]
[331331349,1720246242143,-391.036318,0.00046565,14]
[331331351,1720246242153,-391.036318,0.00046565,14]
[331331353,1720246242162,-425.099269,0.00046565,14]
[331331355,1720246242171,-425.099269,0.00046565,14]
[331331357,1720246242180,-425.099269,0.00046565,14]
[331331359,1720246242191,-425.099269,0.00046565,14]
[331331361,1720246242200,-712.379931,0.00046565,14]
[331331362,1720246242210,-151.0,0.00046565,14]
[331331364,1720246242219,-712.379931,0.00046565,14]
[331331366,1720246242228,-151.0,0.00046565,14]
[331331368,1720246242238,-712.379931,0.00046565,14]
[331331370,1720246242254,-712.379931,0.00046565,14]
[331331371,1720246242279,-257.762496,0.00046565,14]
[331331372,1720246242302,-257.762496,0.00046565,14]
[331331373,1720246242319,-257.762496,0.00046565,14]
[331331374,1720246242328,-257.762496,0.00046565,14]
[331331375,1720246242338,-226.168764,0.00046565,14]
[331331376,1720246242348,-226.168764,0.00046565,14]
[331331377,1720246242357,-226.168764,0.00046565,14]
[331331378,1720246242366,-226.168764,0.00046565,14]
[331331379,1720246242375,-351.971702,0.00046565,14]
[331331380,1720246242384,-351.971702,0.00046565,14]
[331331381,1720246242394,-1026.564006,0.00046565,14]
[331331382,1720246242403,-1026.564006,0.00046565,14]
[331331383,1720246242413,-351.971702,0.00046565,14]
[331331384,1720246242423,-1026.564006,0.00046565,14]
[331331385,1720246242432,-1026.564006,0.00046565,14]
[331331386,1720246242442,-351.971702,0.00046565,14]
[331331387,1720246242451,-431.54649,0.00046565,2]
[331331388,1720246242461,-431.54649,0.00046565,2]
[331331389,1720246242470,-431.54649,0.00046565,2]
[331331390,1720246242480,-431.54649,0.00046565,2]
[331331391,1720246242489,-151.0,0.00046565,14]
[331331392,1720246242498,-151.0,0.00046565,14]
[331331393,1720246242507,-151.0,0.00046565,14]
[331331394,1720246242517,-151.0,0.00046565,14]
[331331395,1720246242526,-151.0,0.00046565,14]
[331331396,1720246242535,-171.842297,0.00046565,14]
[331331397,1720246242544,-171.842297,0.00046565,14]
[331331398,1720246242553,-6191.23945406,0.00046565,5]
[331331399,1720246242633,-111373.9101882,0.00046565,5]
[331331400,1720246242648,-6859.98711261,0.00046565,5]
[331331408,1720246244927,-139.97636403,0.00046565,5]
[331331471,1720246265986,309.7057795,0.0003,4]
[331331472,1720246331518,1100.53231169,0.00043834,4]
[331331830,1720247082499,498.0,0.00032278,30]
[331331832,1720247228351,-175.299725,0.00021096,2]
[331331833,1720247228375,-560.67493815,0.00028,30]
[331331834,1720247228397,-193.9263,0.00028634,30]
[331331835,1720247228420,-240.23831886,0.00030478,2]
[331331836,1720247237016,-9.76168114,0.00030478,2]
[331331837,1720247237041,-168.944063,0.00030565,2]
[331331838,1720247237063,-1244.1044637,0.00030918,2]
[331331839,1720247237083,-473.49064314,0.00032207,30]
[331331840,1720247237278,-625.14049382,0.00032278,30]
[331331841,1720247237299,-36.31197825,0.00032278,4]
[331331842,1720247254167,-118.97169446,0.00032278,4]
[331331843,1720247254470,-3087.51331558,0.00034563,4]
[331331844,1720247254498,-300.0,0.00034573,2]
[331331845,1720247254524,-2286.26328747,0.00034592,60]
[331331846,1720247254549,-1159.1735692,0.00035615,120]
[331331847,1720247347886,-175.299725,0.00021096,2]
[331331848,1720247347910,-500.0,0.00032274,30]
[331331849,1720247347939,-15243.89529379,0.00036771,2]
[331331850,1720247353064,-9656.10470621,0.00036771,2]
[331331851,1720247353193,2823.38378519,0.00039177,4]
[331331852,1720247356093,-8310.10371865,0.00039177,4]
[331331853,1720247356250,-275.13307792,0.00039999,4]
[331331854,1720247356273,-155.25400838,0.00041314,4]
[331331855,1720247356295,-193.63548643,0.00043169,4]
[331331856,1720247356317,-1687.12227624,0.00043169,120]
[331331857,1720247356338,-152.64008967,0.000438,2]
[331331858,1720247393714,-901.26838473,0.00046,120]
[331331859,1720247394221,-301.47149448,0.00046,120]
[331331860,1720247394259,-483.0,0.00046,30]
[331331861,1720247394298,-98.48135239,0.00046027,2]
[331332408,1720247433165,-54.51864761,0.00046027,2]
[331332409,1720247433175,-184.77709126,0.00046465,2]
[331332410,1720247433185,-502.34921401,0.00046465,28]
[331332412,1720247433196,-1089.84,0.00046555,3]
[331332413,1720247433206,-960.41866289,0.00046564,120]
[331332414,1720247433215,-500.0,0.00046564,7]
[331332416,1720247433225,-500.0,0.00046564,7]
[331332417,1720247433235,-500.0,0.00046564,7]
[331332418,1720247433245,-500.0,0.00046564,7]
[331332420,1720247433254,-500.0,0.00046564,7]
[331332421,1720247433265,-500.0,0.00046564,7]
[331332422,1720247433275,-500.0,0.00046564,7]
[331332424,1720247433285,-500.0,0.00046564,7]
[331332425,1720247433295,-500.0,0.00046564,7]
[331332426,1720247433304,-500.0,0.00046564,7]
[331332428,1720247433315,-500.0,0.00046564,7]
[331332429,1720247433325,-500.0,0.00046564,7]
[331332430,1720247433335,-500.0,0.00046564,7]
[331332432,1720247433345,-500.0,0.00046564,7]
[331332433,1720247433354,-500.0,0.00046564,7]
[331332434,1720247433364,-447.58505753,0.00046564,7]
[331332436,1720247433374,-500.0,0.00046564,7]
[331332437,1720247433383,-500.0,0.00046564,7]
[331332438,1720247433393,-500.0,0.00046564,7]
[331332440,1720247433402,-500.0,0.00046564,7]
[331332441,1720247433412,-500.0,0.00046564,7]
[331332442,1720247433423,-500.0,0.00046564,7]
[331332444,1720247433433,-500.0,0.00046564,7]
[331332445,1720247433442,-500.0,0.00046564,7]
[331332446,1720247433452,-500.0,0.00046564,7]
[331332448,1720247433461,-500.0,0.00046564,7]
[331332449,1720247433471,-500.0,0.00046564,7]
[331332450,1720247433480,-500.0,0.00046564,7]
[331332452,1720247433490,-500.0,0.00046564,7]
[331332453,1720247433499,-500.0,0.00046564,7]
[331332454,1720247433508,-500.0,0.00046564,7]
[331332456,1720247433518,-500.0,0.00046564,7]
[331332457,1720247433527,-500.0,0.00046564,7]
[331332458,1720247433537,-1991.45404961,0.00046565,5]
[331332629,1720247441057,-797.17277758,0.00046565,5]
[331332630,1720247441073,-2460.31682731,0.00046565,5]
[331332631,1720247441085,-125422.7265775,0.00046565,5]
[331332632,1720247441096,-175006.19595429,0.00046565,5]
[331332633,1720247441107,-16859.51665467,0.00046565,5]
[331332636,1720247443919,-264.0,0.00046565,5]
[331332637,1720247443931,-3877.79273904,0.00046565,5]
[331332638,1720247443940,-500.0,0.00046574,120]
[331332639,1720247443950,-300.0,0.00046574,31]
[331332640,1720247443959,-500.0,0.00046574,120]
[331332641,1720247443968,-500.0,0.00046574,120]
[331332642,1720247443977,-500.0,0.00046574,120]
[331332643,1720247443987,-500.0,0.00046574,120]
[331332644,1720247443997,-500.0,0.00046574,120]
[331332645,1720247444008,-500.0,0.00046574,120]
[331332646,1720247444018,-500.0,0.00046574,120]
[331332647,1720247444030,-500.0,0.00046574,120]
[331332648,1720247444040,-585.15625599,0.00046574,120]
[331332649,1720247444049,-500.0,0.00046574,120]
[331332651,1720247444059,-500.0,0.00046574,120]
[331332652,1720247444072,-500.0,0.00046574,120]
[331332654,1720247444081,-500.0,0.00046574,120]
[331332655,1720247444092,-500.0,0.00046574,120]
[331332656,1720247444102,-500.0,0.00046574,120]
[331332657,1720247444111,-500.0,0.00046574,120]
[331332659,1720247444120,-500.0,0.00046574,120]
[331332660,1720247444129,-500.0,0.00046574,120]
[331332661,1720247444139,-500.0,0.00046574,120]
[331332662,1720247444148,-500.0,0.00046574,120]
[331332663,1720247444157,-500.0,0.00046574,120]
[331332664,1720247444166,-500.0,0.00046574,120]
[331332665,1720247444175,-179.33636285,0.00046574,120]
[331332666,1720247444185,-500.0,0.00046574,120]
[331332667,1720247444194,-500.0,0.00046574,120]
[331332668,1720247444203,-500.0,0.00046574,120]
[331332669,1720247444212,-500.0,0.00046574,120]
[331332670,1720247444222,-329.95017241,0.00046574,120]
[331332671,1720247444231,-500.0,0.00046574,120]
[331332672,1720247444240,-500.0,0.00046574,120]
[331332673,1720247444249,-500.0,0.00046574,120]
[331332674,1720247444259,-500.0,0.00046574,120]
[331332675,1720247444268,-500.0,0.00046574,120]
[331332676,1720247444277,-500.0,0.00046574,120]
[331332677,1720247444287,-500.0,0.00046574,120]
[331332678,1720247444296,-500.0,0.00046574,120]
[331332680,1720247444305,-500.0,0.00046574,120]
[331332681,1720247444315,-500.0,0.00046574,120]
[331332682,1720247444324,-500.0,0.00046574,120]
[331332683,1720247444332,-69085.11654225,0.00046575,61]
[331332684,1720247444343,-28663.9786949,0.00046575,61]
[331332685,1720247444352,-500.0,0.00046575,120]
[331332686,1720247444361,-300.03609196,0.00046575,120]
[331332688,1720247444370,-500.0,0.00046575,120]
[331332689,1720247444383,-503.66914768,0.00046575,120]
[331332690,1720247444392,-501.12844132,0.00046575,120]
[331332692,1720247444402,-502.29840997,0.00046575,120]
[331332693,1720247444412,-500.0,0.00046575,120]
[331332694,1720247444421,-500.0,0.00046575,2]
[331332695,1720247444431,-500.0,0.00046575,120]
[331332697,1720247444441,-500.0,0.00046575,120]
[331332698,1720247444451,-500.0,0.00046575,120]
[331332699,1720247444460,-500.0,0.00046575,120]
[331332701,1720247444469,-500.0,0.00046575,120]
[331332702,1720247444479,-0.28470184,0.00046575,120]
[331332727,1720247445482,-193.63548643,0.00046575,120]
[331332728,1720247445494,-51.45063197,0.00046575,120]
[331332729,1720247445504,-500.8651659,0.00046575,120]
[331332730,1720247445516,-504.13,0.00046575,120]
[331332731,1720247445526,-500.75436437,0.00046575,120]
[331332732,1720247445537,-500.0,0.00046575,120]
[331332733,1720247445547,-500.0,0.00046575,120]
[331332734,1720247445556,-501.68698848,0.00046575,120]
[331332735,1720247445566,-501.1619338,0.00046575,120]
[331332736,1720247445575,-500.0,0.00046575,120]
[331332737,1720247445586,-556.38369296,0.00046575,120]
[331332738,1720247445596,-500.0,0.00046575,120]
[331332739,1720247445606,-500.0,0.00046575,120]
[331332740,1720247445617,-500.0,0.00046575,120]
[331332741,1720247445628,-500.0,0.00046575,120]
[331332742,1720247445641,-500.98507302,0.00046575,120]
[331332743,1720247445657,-501.48488269,0.00046575,120]
[331332744,1720247445676,-500.0,0.00046575,120]
[331332745,1720247445687,-501.5893816,0.00046575,120]
[331332746,1720247445696,-351.05392413,0.00046575,120]
[331332747,1720247445706,-309.49510183,0.00046575,120]
[331332824,1720247448019,-190.50489817,0.00046575,120]
[331332826,1720247448028,-500.0,0.00046575,120]
[331332827,1720247448039,-501.90845996,0.00046575,120]
[331332828,1720247448049,-502.56113794,0.00046575,120]
[331332830,1720247448058,-500.0,0.00046575,120]
[331332831,1720247448068,-500.55497402,0.00046575,120]
[331332832,1720247448079,-500.0,0.00046575,120]
[331332834,1720247448088,-250.85437899,0.00046575,120]
[331332835,1720247448099,-523.39333691,0.00046575,120]
[331332836,1720247448108,-508.73511158,0.00046575,120]
[331332838,1720247448118,-500.0,0.00046575,120]
[331332839,1720247448129,-841.81,0.00046575,120]
[331332840,1720247448139,-529.49957701,0.00046575,120]
[331332842,1720247448148,-426.87253528,0.00046575,120]
[331333160,1720247491735,765.1707815,0.0003982,2]
[331333385,1720248437704,-214.57525329,0.00015,2]
[331333386,1720248439138,-174.168886,0.00021096,2]
[331333387,1720248440121,-478.95551741,0.00028,30]
[331333388,1720248441553,-166.666666,0.00028275,2]
[331333389,1720248441692,-166.666666,0.00029046,2]
[331333391,1720248441722,-635.84059012,0.00029674,2]
[331333392,1720248441750,-166.666666,0.00029816,2]
[331333393,1720248441770,-157.27126622,0.0003,4]
[331333394,1720248441792,-166.666666,0.00030587,2]
[331333395,1720248441812,-499.95778,0.00031,30]
[331333396,1720248441834,-166.666666,0.00031358,2]
[331333397,1720248441854,-166.666666,0.00032129,2]
[331333398,1720248441874,-551.37,0.00032274,30]
[331333399,1720248441896,-300.0,0.0003403,2]
[331333400,1720248442016,-5484.25079638,0.00034031,2]
[331333401,1720248442319,-15919.19501879,0.00034031,2]
[331333402,1720248442791,-3496.55418483,0.00034031,2]
[331333403,1720248442812,-9058.79374047,0.00034563,4]
[331333406,1720248549067,-2178.94693892,0.00018182,2]
[331333407,1720248550419,-372.20588866,0.00018182,2]
[331333408,1720248551869,-1074.11179075,0.0002,2]
[331333409,1720248551967,-154.62117811,0.00034563,4]
[331333411,1720248552023,-765.41752469,0.00034563,4]
[331333412,1720248552055,-263.21502499,0.00034563,2]
[331333413,1720248552090,-5607.48363295,0.00034563,4]
[331333414,1720248552115,-866.45028013,0.00034563,4]
[331333415,1720248552137,-175.310834,0.00036149,2]
[331333416,1720248552159,-816.09649007,0.00037999,21]
[331333417,1720248552180,-714.87934541,0.00037999,4]
[331333418,1720248552201,-1758.37782493,0.00037999,4]
[331333419,1720248552224,-789.859108,0.00038264,4]
[331333420,1720248552253,-749.3596177,0.00038499,4]
[331333421,1720248552275,-590.89415439,0.00038999,4]
[331333422,1720248552297,-495.50543718,0.00038999,4]
[331333423,1720248552320,-235.40064046,0.00039393,4]
[331333424,1720248552343,-235.40064046,0.00039393,4]
[331333425,1720248552365,-264.9057893,0.00039393,2]
[331333426,1720248552386,-4003.04909558,0.0003999,4]
[331333427,1720248552408,-165.64482472,0.00039999,4]
[331333428,1720248552431,-175.06419494,0.00039999,4]
[331333429,1720248552452,-307.50998759,0.00039999,4]
[331333430,1720248552479,-360.56768716,0.00039999,4]
[331333431,1720248552507,-412.14637905,0.00039999,7]
[331333432,1720248552529,-509.8,0.0004,120]
[331333433,1720248552553,-234.81066176,0.0004,120]
[331333434,1720248552575,-435.0,0.00040229,2]
[331333435,1720248552597,-155.24403697,0.00040229,10]
[331333436,1720248552618,-154.83420373,0.00040229,4]
[331333437,1720248552641,-166.47861002,0.00040278,4]
[331333438,1720248552662,-310.14420599,0.00040278,4]
[331333439,1720248552686,-174.168886,0.00040411,2]
[331333440,1720248552708,-4425.54083742,0.00041095,20]
[331333441,1720248552730,-157.52474722,0.00041941,4]
[331333442,1720248552755,-160.0,0.00042088,3]
[331333443,1720248552777,-155.16093551,0.00042398,4]
[331333444,1720248552799,-537.32517777,0.00042629,30]
[331333445,1720248552821,-160.0,0.0004391,4]
[331333446,1720248552842,-500.0,0.00044,120]
[331333447,1720248553054,155.16757676,0.00039999,4]
[331333448,1720248553107,3501.33534123,0.00034563,4]
[331333449,1720248553248,447.56326508,0.00039999,4]
[331333450,1720248553281,256.25118647,0.00039393,4]
[331333451,1720248553417,250.59593253,0.00039999,4]
[331333452,1720248561706,4496.31861198,0.00041894,4]
[331333454,1720248571754,210.712198,0.00040443,2]
[331333455,1720248576898,190.9281156,0.00034572,2]
[331333456,1720248594547,3611.50869201,0.00022038,2]
[331333457,1720248604323,350.46728037,0.00022038,2]
[331333459,1720248614640,255.51940686,0.00022038,2]
[331333461,1720248626280,724.21175,0.00022038,2]
[331333462,1720248628929,151.0,0.00044,120]
[331333558,1720248640291,-257.5009803,0.00045068,2]
[331333560,1720248640302,-160.0,0.00045733,5]
[331333562,1720248640313,-2040.34238499,0.00046,120]
[331333564,1720248640323,-500.0,0.00046,120]
[331333565,1720248640333,-153.0,0.00046027,2]
[331333566,1720248640343,-586.2181278,0.00046027,2]
[331333567,1720248640353,-503.3975469,0.00046027,2]
[331333568,1720248640362,-293.3096853,0.00046027,2]
[331333569,1720248640371,-155.0,0.0004642,52]
[331333570,1720248640381,-326.31,0.00046555,30]
[331333571,1720248640391,-271.92,0.00046555,30]
[331333572,1720248640401,-226.6,0.00046555,30]
[331333573,1720248640410,-188.84,0.00046555,30]
[331333574,1720248640420,-157.36,0.00046555,30]
[331333575,1720248640429,-786.85,0.00046555,30]
[331333576,1720248640439,-697.94641844,0.00046561,2]
[331333577,1720248640449,-1002.41632879,0.00046564,120]
[331333578,1720248640459,-128612.846325,0.00046565,5]
[331333579,1720248640468,-190.15995,0.00046565,14]
[331333580,1720248640478,-151.0,0.00046565,14]
[331333581,1720248640488,-151.0,0.00046565,14]
[331333582,1720248640500,-151.0,0.00046565,14]
[331333583,1720248640510,-151.0,0.00046565,14]
[331333584,1720248640520,-207.236604,0.00046565,14]
[331333585,1720248640531,-151.0,0.00046565,14]
[331333586,1720248640540,-151.0,0.00046565,14]
[331333587,1720248640551,-151.0,0.00046565,14]
[331333588,1720248640563,-151.0,0.00046565,14]
[331333589,1720248640573,-192919.269487,0.00046565,5]
[331333590,1720248640583,-500.0,0.00046574,120]
[331333591,1720248640593,-500.0,0.00046574,120]
[331333592,1720248640602,-300.0,0.00046574,31]
[331333593,1720248640612,-500.0,0.00046574,120]
[331333594,1720248640622,-200.83578817,0.00046574,120]
[331333595,1720248640632,-500.0,0.00046574,120]
[331333596,1720248640641,-500.0,0.00046574,120]
[331333597,1720248640650,-500.0,0.00046574,120]
[331333598,1720248640659,-69085.11654225,0.00046575,61]
[331333599,1720248640669,-10311.04181914,0.00046575,61]
[331333641,1720248642757,-164.1961937,0.00046564,31]
[331333642,1720248642767,-362.22765402,0.00046564,120]
[331333643,1720248642776,-252.35104302,0.00046564,120]
[331333644,1720248642785,-528.22838067,0.00046564,7]
[331333645,1720248642795,-528.22838067,0.00046564,7]
[331333646,1720248642804,-528.22838067,0.00046564,7]
[331333647,1720248642815,-528.22838067,0.00046564,7]
[331333648,1720248642825,-528.22838067,0.00046564,7]
[331333649,1720248642834,-528.22838067,0.00046564,7]
[331333650,1720248642849,-528.22838067,0.00046564,7]
[331333651,1720248642877,-528.22838067,0.00046564,7]
[331333652,1720248642907,-528.22838067,0.00046564,7]
[331333653,1720248642917,-528.22838067,0.00046564,7]
[331333654,1720248642926,-528.22838067,0.00046564,7]
[331333655,1720248642936,-528.22838067,0.00046564,7]
[331333656,1720248642946,-528.22838067,0.00046564,7]
[331333657,1720248642955,-528.22838067,0.00046564,7]
[331333658,1720248642965,-528.22838067,0.00046564,7]
[331333659,1720248642975,-528.22838067,0.00046564,7]
[331333660,1720248642984,-528.22838067,0.00046564,7]
[331333661,1720248642994,-528.22838067,0.00046564,7]
[331333662,1720248643004,-528.22838067,0.00046564,7]
[331333663,1720248643013,-528.22838067,0.00046564,7]
[331333664,1720248643024,-528.22838067,0.00046564,7]
[331333665,1720248643037,-528.22838067,0.00046564,7]
[331333666,1720248643046,-528.22838067,0.00046564,7]
[331333667,1720248643057,-18352.93687576,0.00046575,61]
[331333668,1720248643274,-500.0,0.00046575,120]
[331333669,1720248643285,-500.0,0.00046575,120]
[331333670,1720248643295,-500.0,0.00046575,120]
[331333671,1720248643305,-505.79277008,0.00046575,120]
[331333672,1720248643317,-500.0,0.00046575,120]
[331333673,1720248643327,-504.41444108,0.00046575,120]
[331333674,1720248643337,-300.03609196,0.00046575,120]
[331333675,1720248643347,-500.0,0.00046575,120]
[331333676,1720248643356,-200.0,0.00046575,7]